[Event "FIDE WCCC Girls-10 2024"]
[Site "Montesilvano"]
[Date "2024.11.18"]
[Round "4.19"]
[White "Li, Wan Qin"]
[Black "Yi, Ruiyu"]
[Result "0-1"]
[Annotator "NA RC"]
[ECO "D02"]
[WhiteElo "1628"]
[BlackElo "1571"]
[PlyCount "142"]
[EventDate "2024.11.18"]
[EventType "swiss"]
[EventCountry "ITA"]
[SourceTitle "playchess.com"]
[Source "ChessBase"]
[SourceQuality "1"]
[TimeControl "5400+30"]

1. Nf3 {[%emt 0:00:02]} d5 {[%emt 0:00:06]} 2. g3 {[%emt 0:00:07]} c5 {[%emt 0:00:04]} 3. Bg2 {[%emt 0:00:12]} Nf6 {[%emt 0:00:05]} 4. O-O {[%emt 0:00:24]} Nc6 {[%emt 0:00:04]} 5. d4 {[%emt 0:00:21]} Bf5 {[%emt 0:00:26]} 6. Bf4 {[%emt 0:00:33]} e6 {[%emt 0:00:09]} 7. h3 {[%emt 0:01:27]} h6 {[%emt 0:00:54]} 8. Na3 {[%emt 0:02:50]} cxd4 {[%emt 0:02:06]} 9. Nb5 {[%emt 0:04:10]} Rc8 {[%emt 0:06:53]} 10. Nfxd4 {[%emt 0:02:42]} Nxd4 {[%emt 0:01:22]} 11. Qxd4 {[%emt 0:00:22]} Bc5 {[%emt 0:01:46]} 12. Qd2 {[%emt 0:07:57]} a6 {[%emt 0:07:34]} 13. Nd4 {[%emt 0:03:19]} Bxd4 {[%emt 0:01:44]} 14. Qxd4 {[%emt 0:00:12]} Bxc2 {[%emt 0:03:20]} 15. Rac1 {[%emt 0:02:58]} O-O {[%emt 0:02:17]} 16. Qb4 {[%emt 0:05:42]} b5 {[%emt 0:02:39]} 17. Bd6 {[%emt 0:04:45]} Re8 {[%emt 0:00:17]} 18. Bc5 {[%emt 0:00:59]} Bg6 {[%emt 0:06:10]} 19. Be7 {[%emt 0:02:32]} Qb6 {[%emt 0:01:41]} 20. Bxf6 {[%emt 0:05:13]} gxf6 {[%emt 0:00:27]} 21. Qf4 {[%emt 0:02:23]} Kg7 {[%emt 0:01:10]} 22. h4 {[%emt 0:01:25]} e5 {[%emt 0:02:22]} 23. Qg4 {[%emt 0:01:01]} Qe6 {[%emt 0:01:44]} 24. Qb4 {[%emt 0:01:26]} Red8 {[%emt 0:04:52]} 25. g4 {[%emt 0:03:13]} Rc4 {[%emt 0:01:11]} 26. Rxc4 {[%emt 0:00:15]} dxc4 {[%emt 0:00:28]} 27. h5 {[%emt 0:00:33]} Bh7 {[%emt 0:02:49]} 28. f3 {[%emt 0:00:44]} Qb6+ {[%emt 0:00:50]} 29. Rf2 {[%emt 0:01:12]} Qe3 {[%emt 0:02:05]} 30. Bf1 {[%emt 0:02:08]} Rd2 {[%emt 0:02:08]} 31. a4 {[%emt 0:08:48]} Bd3 {[%emt 0:02:07]} 32. Qa3 {[%emt 0:07:55]} b4 {[%emt 0:04:09]} 33. Qxb4 {[%emt 0:01:24]} Bxe2 {[%emt 0:03:18]} 34. Qc3 {[%emt 0:03:14]} Rd3 {[%emt 0:11:35]} 35. Qxc4 {[%emt 0:01:26]} Bxf1 {[%emt 0:00:56]} 36. Kxf1 {[%emt 0:00:08]} Rd6 {[%emt 0:01:40]} 37. Qc2 {[%emt 0:03:51]} Rd4 {[%emt 0:02:11]} 38. a5 {[%emt 0:04:24]} Qd3+ {[%emt 0:01:26]} 39. Re2 {[%emt 0:01:09]} Qxf3+ {[%emt 0:00:49]} 40. Ke1 {[%emt 0:00:07]} Qh1+ {[%emt 0:00:23]} 41. Kf2 {[%emt 0:00:31]} Rf4+ {[%emt 0:00:47]} 42. Ke3 {[%emt 0:02:25]} Qg1+ {[%emt 0:01:08]} 43. Kd2 {[%emt 0:01:12]} Rd4+ {[%emt 0:00:21]} 44. Qd3 {[%emt 0:00:22]} Rxd3+ {[%emt 0:00:05]} 45. Kxd3 {[%emt 0:00:05]} Qd1+ {[%emt 0:00:08]} 46. Rd2 {[%emt 0:00:08]} Qxg4 {[%emt 0:00:05]} 47. Kc3 {[%emt 0:00:11]} e4 {[%emt 0:00:10]} 48. Kd4 {[%emt 0:00:06]} Qd7+ {[%emt 0:00:15]} 49. Ke3 {[%emt 0:00:44]} Qe6 {[%emt 0:00:27]} 50. Rg2+ {[%emt 0:00:08]} Kh7 {[%emt 0:00:06]} 51. Rd2 {[%emt 0:00:04]} f5 {[%emt 0:00:07]} 52. Rd4 {[%emt 0:00:11]} Qb3+ {[%emt 0:00:09]} 53. Kf4 {[%emt 0:00:07]} Qf3+ {[%emt 0:00:04]} 54. Ke5 {[%emt 0:00:07]} e3 {[%emt 0:00:09]} 55. Rd7 {[%emt 0:00:05]} Qg3+ {[%emt 0:00:12]} 56. Kd4 {[%emt 0:00:14]} e2 {[%emt 0:00:29]} 57. Rxf7+ {[%emt 0:00:05]} Qg7+ {[%emt 0:00:07]} 58. Rxg7+ {[%emt 0:00:11]} Kxg7 {[%emt 0:00:03]} 59. Ke5 {[%emt 0:00:07]} e1=Q+ {[%emt 0:00:10]} 60. Kxf5 {[%emt 0:00:06]} Qxa5+ {[%emt 0:00:46]} 61. Ke4 {[%emt 0:00:19]} Qxh5 {[%emt 0:00:21]} 62. Kd4 {[%emt 0:00:04]} Qg4+ {[%emt 0:00:07]} 63. Kc5 {[%emt 0:00:05]} h5 {[%emt 0:00:08]} 64. Kb6 {[%emt 0:00:09]} Qe6+ {[%emt 0:00:08]} 65. Ka5 {[%emt 0:00:05]} h4 {[%emt 0:00:05]} 66. b4 {[%emt 0:00:03]} h3 {[%emt 0:00:09]} 67. b5 {[%emt 0:00:03]} axb5 {[%emt 0:00:13]} 68. Kxb5 {[%emt 0:00:04]} h2 {[%emt 0:00:05]} 69. Kc5 {[%emt 0:00:09]} h1=Q {[%emt 0:00:07]} 70. Kd4 {[%emt 0:00:02]} Qd1+ {[%emt 0:00:13]} 71. Kc3 {[%emt 0:00:03]} Qeb3# {[%emt 0:30:19]} 0-1

[Event "FIDE WCCC Girls-10 2024"]
[Site "Montesilvano"]
[Date "2024.11.18"]
[Round "4.20"]
[White "Khusnitdinova, Husnorakhon"]
[Black "Wang, Mi Ya Mia"]
[Result "1-0"]
[Annotator "NA RC"]
[ECO "B33"]
[WhiteElo "1626"]
[BlackElo "1552"]
[PlyCount "81"]
[EventDate "2024.11.18"]
[EventType "swiss"]
[EventCountry "ITA"]
[SourceTitle "playchess.com"]
[Source "ChessBase"]
[SourceQuality "1"]
[TimeControl "5400+30"]

1. e4 {[%emt 0:00:04]} c5 {[%emt 0:00:04]} 2. Nf3 {[%emt 0:00:06]} Nc6 {[%emt 0:00:10]} 3. d4 {[%emt 0:00:05]} cxd4 {[%emt 0:00:12]} 4. Nxd4 {[%emt 0:00:05]} e5 {[%emt 0:00:18]} 5. Nb5 {[%emt 0:00:04]} d6 {[%emt 0:00:19]} 6. N1c3 {[%emt 0:00:05]} a6 {[%emt 0:00:25]} 7. Na3 {[%emt 0:00:05]} b5 {[%emt 0:00:21]} 8. Nd5 {[%emt 0:00:04]} Nf6 {[%emt 0:00:32]} 9. Bg5 {[%emt 0:00:34]} Be7 {[%emt 0:00:34]} 10. Bxf6 {[%emt 0:00:18]} Bxf6 {[%emt 0:00:14]} 11. c4 {[%emt 0:00:08]} b4 {[%emt 0:00:30]} 12. Nc2 {[%emt 0:00:13]} a5 {[%emt 0:00:23]} 13. g3 {[%emt 0:00:15]} Be7 {[%emt 1:32:58]} 14. Bg2 {[%emt 0:00:34]} Be6 {[%emt 0:00:00]} 15. O-O {[%emt 0:02:02]} O-O {[%emt 0:00:00]} 16. Qd3 {[%emt 0:00:22]} Bxd5 {[%emt 0:00:00]} 17. exd5 {[%emt 0:04:47]} Na7 {[%emt 0:00:00]} 18. Ne3 {[%emt 0:06:47]} Rc8 {[%emt 0:00:00]} 19. Rac1 {[%emt 0:13:44]} Bg5 {[%emt 0:00:00]} 20. Bh3 {[%emt 0:06:30]} Rc5 {[%emt 0:00:00]} 21. Rc2 {[%emt 0:01:56]} Bxe3 {[%emt 0:00:00]} 22. fxe3 {[%emt 0:02:54]} Qg5 {[%emt 0:00:00]} 23. Rcf2 {[%emt 0:03:01]} Rc7 {[%emt 0:00:00]} 24. Rf5 {[%emt 0:09:47]} Qg6 {[%emt 0:00:00]} 25. Bg2 {[%emt 0:07:45]} Nc8 {[%emt 0:00:00]} 26. Be4 {[%emt 0:04:51]} Qh6 {[%emt 0:00:00]} 27. Qe2 {[%emt 0:01:35]} g6 {[%emt 0:00:00]} 28. Rf6 {[%emt 0:00:22]} Qg5 {[%emt 0:00:00]} 29. b3 {[%emt 0:04:42]} Rd7 {[%emt 0:00:00]} 30. Bg2 {[%emt 0:01:19]} Qh6 {[%emt 0:00:00]} 31. Qf2 {[%emt 0:01:35]} Nb6 {[%emt 0:00:00]} 32. h4 {[%emt 0:02:22]} Qg7 {[%emt 0:00:00]} 33. Bh3 {[%emt 0:00:07]} Rdd8 {[%emt 0:00:00]} 34. e4 {[%emt 0:00:10]} Na8 {[%emt 0:00:00]} 35. Qa7 {[%emt 0:00:06]} g5 {[%emt 0:00:00]} 36. Rxf7 {[%emt 0:01:38]} Rxf7 {[%emt 0:00:00]} 37. Rxf7 {[%emt 0:00:02]} Qg6 {[%emt 0:00:00]} 38. Be6 {[%emt 0:00:05]} Kh8 {[%emt 0:00:00]} 39. Bf5 {[%emt 0:00:21]} Qh5 {[%emt 0:00:00]} 40. Rxh7+ {[%emt 0:02:53]} Kg8 {[%emt 0:00:00]} 41. Qg7# {[%emt 0:00:05]} 1-0

[Event "FIDE WCCC Girls-10 2024"]
[Site "Montesilvano"]
[Date "2024.11.18"]
[Round "4.21"]
[White "Ahmadli, Mehriban"]
[Black "Isakhanyan, Nare"]
[Result "1-0"]
[Annotator "NA RC"]
[ECO "C18"]
[WhiteElo "1624"]
[BlackElo "1540"]
[PlyCount "65"]
[EventDate "2024.11.18"]
[EventType "swiss"]
[EventCountry "ITA"]
[SourceTitle "playchess.com"]
[Source "ChessBase"]
[SourceQuality "1"]
[TimeControl "5400+30"]

1. e4 {[%emt 0:00:01]} e6 {[%emt 0:00:08]} 2. d4 {[%emt 0:00:05]} d5 {[%emt 0:00:05]} 3. Nc3 {[%emt 0:00:08]} Bb4 {[%emt 0:00:06]} 4. e5 {[%emt 0:00:05]} c5 {[%emt 0:00:10]} 5. a3 {[%emt 0:00:01]} Bxc3+ {[%emt 0:00:06]} 6. bxc3 {[%emt 0:00:01]} Ne7 {[%emt 0:00:12]} 7. Qg4 {[%emt 0:00:09]} Qc7 {[%emt 0:00:18]} 8. Qxg7 {[%emt 0:00:16]} Rg8 {[%emt 0:00:07]} 9. Qxh7 {[%emt 0:00:06]} Nbc6 {[%emt 0:00:31]} 10. Qd3 {[%emt 0:02:16]} cxd4 {[%emt 0:01:06]} 11. cxd4 {[%emt 0:00:09]} Nxe5 {[%emt 0:05:22]} 12. Qd2 {[%emt 0:08:34]} Bd7 {[%emt 0:15:57]} 13. Bb2 {[%emt 0:04:29]} Nc4 {[%emt 0:01:51]} 14. Bxc4 {[%emt 0:02:56]} dxc4 {[%emt 0:04:20]} 15. O-O-O {[%emt 0:14:41]} Rxg2 {[%emt 0:08:56]} 16. Nf3 {[%emt 0:02:13]} O-O-O {[%emt 0:03:26]} 17. Ne5 {[%emt 0:06:46]} Nd5 {[%emt 0:04:41]} 18. Bc3 {[%emt 0:08:05]} Bc6 {[%emt 0:15:23]} 19. h4 {[%emt 0:11:07]} Nxc3 {[%emt 0:33:13]} 20. Qxc3 {[%emt 0:00:19]} Rxf2 {[%emt 0:02:35]} 21. Rhf1 {[%emt 0:00:33]} Rh2 {[%emt 0:01:00]} 22. Rxf7 {[%emt 0:01:49]} Qd6 {[%emt 0:00:42]} 23. Qa5 {[%emt 0:05:20]} Be4 {[%emt 0:01:08]} 24. Rd2 {[%emt 0:04:14]} Rxd2 {[%emt 0:00:18]} 25. Qxd2 {[%emt 0:00:29]} Qxd4 {[%emt 0:00:45]} 26. Qxd4 {[%emt 0:00:25]} Rxd4 {[%emt 0:00:05]} 27. h5 {[%emt 0:01:30]} Bf5 {[%emt 0:00:39]} 28. Ng6 {[%emt 0:02:13]} Rg4 {[%emt 0:00:44]} 29. Ne7+ {[%emt 0:04:52]} Kb8 {[%emt 0:00:33]} 30. Nxf5 {[%emt 0:00:13]} exf5 {[%emt 0:00:06]} 31. h6 {[%emt 0:00:04]} Rg8 {[%emt 0:00:51]} 32. h7 {[%emt 0:00:04]} Rh8 {[%emt 0:00:04]} 33. Rg7 {[%emt 0:00:09]} 1-0

[Event "FIDE WCCC Girls-10 2024"]
[Site "Montesilvano"]
[Date "2024.11.18"]
[Round "4.22"]
[White "Pham, Nhu Y"]
[Black "Bjerregaard Hagen, Frida"]
[Result "1/2-1/2"]
[Annotator "RC"]
[ECO "D59"]
[WhiteElo "1914"]
[BlackElo "1815"]
[PlyCount "74"]
[EventDate "2024.11.18"]
[EventType "swiss"]
[EventCountry "ITA"]
[SourceTitle "playchess.com"]
[Source "ChessBase"]
[SourceQuality "1"]
[TimeControl "5400+30"]

1. d4 {[%emt 0:00:06]} d5 {[%emt 0:00:09]} 2. c4 {[%emt 0:00:22]} e6 {[%emt 0:00:28]} 3. Nf3 {[%emt 0:01:25]} Nf6 {[%emt 0:00:48]} 4. Nc3 {[%emt 0:01:35]} Be7 {[%emt 0:00:51]} 5. Bg5 {[%emt 0:01:19]} h6 {[%emt 0:02:20]} 6. Bh4 {[%emt 0:01:43]} O-O {[%emt 0:00:42]} 7. e3 {[%emt 0:01:27]} b6 {[%emt 0:06:57]} 8. cxd5 {[%emt 0:02:34]} Nxd5 {[%emt 0:05:36]} 9. Bxe7 {[%emt 0:01:22]} Nxe7 {[%emt 0:02:07]} 10. Bd3 {[%emt 0:01:24]} Bb7 {[%emt 0:03:52]} 11. O-O {[%emt 0:01:37]} Nd7 {[%emt 0:01:32]} 12. e4 {[%emt 0:04:11]} c5 {[%emt 0:03:35]} 13. Bb5 {[%emt 0:08:44]} cxd4 {[%emt 0:05:52]} 14. Qxd4 {[%emt 0:02:06]} Nf6 {[%emt 0:02:11]} 15. Qe3 {[%emt 1:08:05]} Nc6 {[%emt 0:03:59]} 16. Rfd1 {[%emt 0:00:00]} Qe7 {[%emt 0:03:06]} 17. Bxc6 {[%emt 0:00:00]} Bxc6 {[%emt 0:00:34]} 18. Nd4 {[%emt 0:00:00]} Bb7 {[%emt 0:03:43]} 19. Rac1 {[%emt 0:00:00]} Rac8 {[%emt 0:03:38]} 20. e5 {[%emt 0:00:00]} Nd5 {[%emt 0:04:05]} 21. Nxd5 {[%emt 0:00:00]} Bxd5 {[%emt 0:02:19]} 22. Nf5 {[%emt 0:00:00]} exf5 {[%emt 0:06:14]} 23. Rxd5 {[%emt 0:00:00]} Rfd8 {[%emt 0:04:35]} 24. Rxc8 {[%emt 0:00:00]} Rxc8 {[%emt 0:00:30]} 25. Qd2 {[%emt 0:05:00]} Qb4 {[%emt 0:14:01]} 26. h3 {[%emt 0:00:00]} Qxd2 {[%emt 0:01:32]} 27. Rxd2 {[%emt 0:00:00]} Kf8 {[%emt 0:01:40]} 28. Rd7 {[%emt 0:00:00]} Rc2 {[%emt 0:03:27]} 29. Rxa7 {[%emt 0:00:00]} Rxb2 {[%emt 0:00:16]} 30. a4 {[%emt 0:00:00]} Ra2 {[%emt 0:01:21]} 31. Ra6 {[%emt 0:00:00]} Rb2 {[%emt 0:00:27]} 32. a5 {[%emt 0:00:00]} bxa5 {[%emt 0:00:15]} 33. Rxa5 {[%emt 0:00:00]} Ke7 {[%emt 0:00:31]} 34. f4 {[%emt 0:00:00]} Rb4 {[%emt 0:00:45]} 35. g3 {[%emt 0:00:00]} Rb2 {[%emt 0:00:20]} 36. Ra6 {[%emt 0:00:00]} Kd7 {[%emt 0:00:56]} 37. Rd6+ {[%emt 0:00:00]} Ke7 {[%emt 0:00:19]} 1/2-1/2

[Event "FIDE WCCC Girls-10 2024"]
[Site "Montesilvano"]
[Date "2024.11.18"]
[Round "4.23"]
[White "Ivanova, Darina"]
[Black "Tran Hoang Bao An"]
[Result "0-1"]
[Annotator "NA RC"]
[ECO "B41"]
[WhiteElo "1516"]
[BlackElo "1714"]
[PlyCount "96"]
[EventDate "2024.11.18"]
[EventType "swiss"]
[EventCountry "ITA"]
[SourceTitle "playchess.com"]
[Source "ChessBase"]
[SourceQuality "1"]
[TimeControl "5400+30"]

1. e4 {[%emt 0:00:03]} c5 {[%emt 0:00:18]} 2. Nf3 {[%emt 0:00:11]} e6 {[%emt 0:00:32]} 3. d4 {[%emt 0:00:26]} cxd4 {[%emt 0:01:23]} 4. Nxd4 {[%emt 0:01:30]} a6 {[%emt 0:02:03]} 5. a4 {[%emt 0:02:25]} Nf6 {[%emt 0:02:31]} 6. Nc3 {[%emt 0:05:30]} Bb4 {[%emt 0:02:04]} 7. Bd3 {[%emt 0:03:25]} d6 {[%emt 0:02:30]} 8. O-O {[%emt 0:03:05]} O-O {[%emt 0:02:49]} 9. Bg5 {[%emt 0:04:13]} Nbd7 {[%emt 0:04:47]} 10. Bc4 {[%emt 0:02:53]} Re8 {[%emt 0:02:42]} 11. Na2 {[%emt 0:06:56]} Bc5 {[%emt 0:04:46]} 12. b4 {[%emt 0:05:23]} Ba7 {[%emt 0:03:42]} 13. Rb1 {[%emt 0:01:50]} Qc7 {[%emt 0:00:52]} 14. Bxf6 {[%emt 0:03:24]} Qxc4 {[%emt 0:01:02]} 15. Bxg7 {[%emt 0:03:20]} Kxg7 {[%emt 0:00:46]} 16. Qg4+ {[%emt 0:03:21]} Kf8 {[%emt 0:01:20]} 17. Nb3 {[%emt 0:00:35]} Nf6 {[%emt 0:00:40]} 18. Qf4 {[%emt 0:01:30]} Nxe4 {[%emt 0:01:25]} 19. Nd2 {[%emt 0:02:10]} Nxd2 {[%emt 0:00:27]} 20. Qxd6+ {[%emt 0:00:23]} Kg7 {[%emt 0:16:00]} 21. Qxd2 {[%emt 0:01:02]} Qxa2 {[%emt 0:00:55]} 22. Qg5+ {[%emt 0:00:14]} Kf8 {[%emt 0:00:07]} 23. Qh6+ {[%emt 0:01:33]} Ke7 {[%emt 0:00:11]} 24. Qg5+ {[%emt 0:00:11]} Kd6 {[%emt 0:01:15]} 25. Qf4+ {[%emt 0:01:33]} e5 {[%emt 0:00:11]} 26. Rfd1+ {[%emt 0:00:49]} Kc7 {[%emt 0:01:54]} 27. Qg3 {[%emt 0:01:05]} Qc4 {[%emt 0:00:57]} 28. Rb3 {[%emt 0:01:23]} Kb8 {[%emt 0:04:06]} 29. b5 {[%emt 0:01:15]} Bf5 {[%emt 0:01:45]} 30. bxa6 {[%emt 0:00:48]} Qxa6 {[%emt 0:00:32]} 31. Re1 {[%emt 0:02:25]} Qa5 {[%emt 0:01:25]} 32. c3 {[%emt 0:01:39]} Qc5 {[%emt 0:00:35]} 33. Rb5 {[%emt 0:03:18]} Qxf2+ {[%emt 0:00:19]} 34. Qxf2 {[%emt 0:00:12]} Bxf2+ {[%emt 0:00:04]} 35. Kxf2 {[%emt 0:00:32]} f6 {[%emt 0:00:25]} 36. a5 {[%emt 0:00:51]} Ra6 {[%emt 0:00:24]} 37. h3 {[%emt 0:00:53]} Rc8 {[%emt 0:00:20]} 38. g4 {[%emt 0:00:45]} Bd7 {[%emt 0:00:35]} 39. Rd5 {[%emt 0:00:59]} Be6 {[%emt 0:00:17]} 40. Rd3 {[%emt 0:01:24]} Rxa5 {[%emt 0:00:08]} 41. Rd6 {[%emt 0:00:25]} Ra6 {[%emt 0:00:52]} 42. Red1 {[%emt 0:00:30]} Rxc3 {[%emt 0:02:32]} 43. Rxa6 {[%emt 0:00:21]} bxa6 {[%emt 0:00:05]} 44. Rd6 {[%emt 0:00:19]} Bc4 {[%emt 0:00:09]} 45. Rxf6 {[%emt 0:00:26]} Rxh3 {[%emt 0:00:13]} 46. Rf5 {[%emt 0:00:29]} e4 {[%emt 0:00:09]} 47. Re5 {[%emt 0:00:55]} Bd3 {[%emt 0:03:18]} 48. Re8+ {[%emt 0:01:20]} Kc7 {[%emt 0:00:15]} 0-1

[Event "FIDE WCCC Girls-10 2024"]
[Site "Montesilvano"]
[Date "2024.11.18"]
[Round "4.24"]
[White "Tu, Tiffany"]
[Black "Aragonda, Sahasra"]
[Result "1-0"]
[Annotator "NA RC"]
[ECO "B36"]
[WhiteElo "1687"]
[BlackElo "1526"]
[PlyCount "115"]
[EventDate "2024.11.18"]
[EventType "swiss"]
[EventCountry "ITA"]
[SourceTitle "playchess.com"]
[Source "ChessBase"]
[SourceQuality "1"]
[TimeControl "5400+30"]

1. e4 {[%emt 0:00:03]} c5 {[%emt 0:00:12]} 2. Nf3 {[%emt 0:00:07]} g6 {[%emt 0:00:19]} 3. d4 {[%emt 0:00:05]} cxd4 {[%emt 0:00:07]} 4. Nxd4 {[%emt 0:00:08]} Nc6 {[%emt 0:00:29]} 5. c4 {[%emt 0:01:26]} Nf6 {[%emt 0:00:23]} 6. Nc3 {[%emt 0:00:26]} Nxd4 {[%emt 0:01:07]} 7. Qxd4 {[%emt 0:00:15]} d6 {[%emt 0:00:21]} 8. Be2 {[%emt 0:01:46]} Bg7 {[%emt 0:00:48]} 9. O-O {[%emt 0:01:00]} O-O {[%emt 0:00:07]} 10. Qd3 {[%emt 0:00:21]} Be6 {[%emt 0:01:52]} 11. f3 {[%emt 0:02:27]} Rc8 {[%emt 0:01:21]} 12. b3 {[%emt 0:00:28]} a6 {[%emt 0:02:30]} 13. Be3 {[%emt 0:00:16]} Nd7 {[%emt 0:04:17]} 14. Rac1 {[%emt 0:06:43]} Ne5 {[%emt 0:01:07]} 15. Qd2 {[%emt 0:00:48]} Qd7 {[%emt 0:09:18]} 16. Na4 {[%emt 0:06:29]} Rc6 {[%emt 0:11:32]} 17. Nc3 {[%emt 0:07:44]} Rcc8 {[%emt 0:02:43]} 18. Rfd1 {[%emt 0:01:36]} Qc7 {[%emt 0:11:03]} 19. Kh1 {[%emt 0:06:44]} Qb8 {[%emt 0:09:50]} 20. Qe1 {[%emt 0:06:23]} Nc6 {[%emt 0:05:41]} 21. Qg3 {[%emt 0:06:54]} Qc7 {[%emt 0:03:46]} 22. f4 {[%emt 0:07:37]} Kh8 {[%emt 0:06:48]} 23. Nd5 {[%emt 0:07:35]} Qd8 {[%emt 0:02:23]} 24. Bb6 {[%emt 0:08:08]} Qd7 {[%emt 0:02:22]} 25. e5 {[%emt 0:05:14]} Bxd5 {[%emt 0:03:20]} 26. Rxd5 {[%emt 0:00:30]} Nb4 {[%emt 0:00:47]} 27. Rd2 {[%emt 0:01:01]} Qc6 {[%emt 0:00:58]} 28. Be3 {[%emt 0:03:29]} dxe5 {[%emt 0:01:43]} 29. a3 {[%emt 0:02:24]} exf4 {[%emt 0:01:36]} 30. Bxf4 {[%emt 0:02:40]} Qe4 {[%emt 0:02:39]} 31. axb4 {[%emt 0:01:20]} e5 {[%emt 0:00:25]} 32. Be3 {[%emt 0:01:43]} f5 {[%emt 0:00:51]} 33. Qf3 {[%emt 0:01:11]} Qxf3 {[%emt 0:00:19]} 34. Bxf3 {[%emt 0:00:12]} e4 {[%emt 0:00:04]} 35. Be2 {[%emt 0:01:01]} f4 {[%emt 0:00:15]} 36. Bc5 {[%emt 0:00:23]} Rf7 {[%emt 0:00:33]} 37. Rcd1 {[%emt 0:02:22]} h5 {[%emt 0:01:15]} 38. Rd8+ {[%emt 0:01:12]} Rxd8 {[%emt 0:00:15]} 39. Rxd8+ {[%emt 0:00:05]} Kh7 {[%emt 0:00:14]} 40. Re8 {[%emt 0:00:10]} e3 {[%emt 0:00:14]} 41. h3 {[%emt 0:01:30]} Rd7 {[%emt 0:00:19]} 42. Kg1 {[%emt 0:01:04]} Rd2 {[%emt 0:00:22]} 43. Kf1 {[%emt 0:00:05]} Rb2 {[%emt 0:00:30]} 44. Rd8 {[%emt 0:00:29]} Rxb3 {[%emt 0:00:28]} 45. Rd3 {[%emt 0:00:13]} Rb1+ {[%emt 0:00:46]} 46. Rd1 {[%emt 0:00:06]} Rb3 {[%emt 0:00:34]} 47. Bd6 {[%emt 0:00:37]} g5 {[%emt 0:00:21]} 48. g3 {[%emt 0:00:42]} Bh6 {[%emt 0:00:34]} 49. gxf4 {[%emt 0:01:04]} gxf4 {[%emt 0:00:09]} 50. Rd4 {[%emt 0:00:26]} Rb1+ {[%emt 0:00:24]} 51. Kg2 {[%emt 0:00:14]} Re1 {[%emt 0:00:53]} 52. Kf3 {[%emt 0:00:21]} Rh1 {[%emt 0:00:37]} 53. Bxf4 {[%emt 0:00:31]} Rxh3+ {[%emt 0:00:32]} 54. Kg2 {[%emt 0:00:06]} Rh4 {[%emt 0:00:16]} 55. Bd3+ {[%emt 0:00:23]} Kg8 {[%emt 0:00:50]} 56. Bxe3 {[%emt 0:00:27]} Rxd4 {[%emt 0:00:18]} 57. Bxd4 {[%emt 0:00:07]} Kf7 {[%emt 0:00:10]} 58. Be4 {[%emt 0:00:14]} 1-0

[Event "FIDE WCCC Girls-10 2024"]
[Site "Montesilvano"]
[Date "2024.11.18"]
[Round "4.25"]
[White "Stoica, Melina-Theodora"]
[Black "Abibulla, Inzhu"]
[Result "1-0"]
[Annotator "NA RC"]
[ECO "D38"]
[WhiteElo "1675"]
[BlackElo "1499"]
[PlyCount "93"]
[EventDate "2024.11.18"]
[EventType "swiss"]
[EventCountry "ITA"]
[SourceTitle "playchess.com"]
[Source "ChessBase"]
[SourceQuality "1"]
[TimeControl "5400+30"]

1. d4 {[%emt 0:00:02]} d5 {[%emt 0:00:07]} 2. Nf3 {[%emt 0:00:08]} e6 {[%emt 0:00:21]} 3. c4 {[%emt 0:00:21]} Bb4+ {[%emt 0:00:13]} 4. Nc3 {[%emt 0:00:51]} Nf6 {[%emt 0:01:02]} 5. Bg5 {[%emt 0:01:35]} O-O {[%emt 0:01:49]} 6. e3 {[%emt 0:03:19]} Nbd7 {[%emt 0:01:50]} 7. Bd3 {[%emt 0:04:50]} dxc4 {[%emt 0:06:01]} 8. Bxc4 {[%emt 0:00:25]} a6 {[%emt 0:01:14]} 9. O-O {[%emt 0:01:38]} b5 {[%emt 0:00:41]} 10. Bd3 {[%emt 0:00:42]} h6 {[%emt 0:00:39]} 11. Bh4 {[%emt 0:00:33]} Bb7 {[%emt 0:01:29]} 12. a3 {[%emt 0:00:30]} Bxc3 {[%emt 0:00:55]} 13. bxc3 {[%emt 0:00:09]} c5 {[%emt 0:02:34]} 14. Ne5 {[%emt 0:10:20]} Qc7 {[%emt 0:05:10]} 15. Nxd7 {[%emt 0:07:53]} Nxd7 {[%emt 0:02:01]} 16. Qg4 {[%emt 0:13:47]} c4 {[%emt 0:07:08]} 17. Bc2 {[%emt 0:07:30]} Qc6 {[%emt 0:09:16]} 18. e4 {[%emt 0:08:21]} f5 {[%emt 0:13:17]} 19. Qg6 {[%emt 0:22:30]} fxe4 {[%emt 0:00:43]} 20. f3 {[%emt 0:04:04]} e5 {[%emt 0:02:30]} 21. Qxc6 {[%emt 0:00:52]} Bxc6 {[%emt 0:00:08]} 22. fxe4 {[%emt 0:03:29]} exd4 {[%emt 0:01:18]} 23. cxd4 {[%emt 0:00:55]} a5 {[%emt 0:01:55]} 24. d5 {[%emt 0:01:02]} Bb7 {[%emt 0:00:28]} 25. Be7 {[%emt 0:01:01]} Rxf1+ {[%emt 0:00:20]} 26. Rxf1 {[%emt 0:00:07]} Re8 {[%emt 0:00:24]} 27. Bd6 {[%emt 0:00:18]} Nf6 {[%emt 0:01:25]} 28. Rb1 {[%emt 0:03:31]} Ba6 {[%emt 0:00:53]} 29. Bc7 {[%emt 0:01:11]} a4 {[%emt 0:04:54]} 30. d6 {[%emt 0:00:08]} Nd7 {[%emt 0:00:13]} 31. Kf2 {[%emt 0:00:46]} Kf7 {[%emt 0:35:02]} 32. Ke3 {[%emt 0:01:11]} Ke6 {[%emt 0:00:00]} 33. Kd4 {[%emt 0:00:29]} Rf8 {[%emt 0:00:00]} 34. Bd1 {[%emt 0:00:31]} Ne5 {[%emt 0:00:00]} 35. Kc5 {[%emt 0:01:08]} g6 {[%emt 0:00:00]} 36. Kb6 {[%emt 0:00:15]} Ra8 {[%emt 0:00:00]} 37. Bf3 {[%emt 0:00:22]} Nd7+ {[%emt 0:00:00]} 38. Kc6 {[%emt 0:00:09]} h5 {[%emt 0:00:00]} 39. Re1 {[%emt 0:01:20]} Ne5+ {[%emt 0:00:00]} 40. Kb6 {[%emt 0:00:21]} Nd3 {[%emt 0:00:00]} 41. Rd1 {[%emt 0:00:26]} Nb2 {[%emt 0:00:00]} 42. e5 {[%emt 0:01:26]} Nxd1 {[%emt 0:00:00]} 43. Bxa8 {[%emt 0:00:04]} Nf2 {[%emt 0:00:00]} 44. Bd5+ {[%emt 0:00:13]} Kd7 {[%emt 0:00:00]} 45. e6+ {[%emt 0:00:06]} Ke8 {[%emt 0:00:00]} 46. d7+ {[%emt 0:00:04]} Ke7 {[%emt 0:00:00]} 47. d8=Q# {[%emt 0:00:06]} 1-0